bitfinex/quotes_ETHUSD_20260304
["timestamp","ask_amount","ask_price","bid_price","bid_amount"]
[1772645595033,0.4321015,2137.2,2136.6,0.001]
[1772645595034,0.43209571,2137.1,2136.6,0.001]
[1772645595199,0.58580403,2137.2,2136.6,0.001]
[1772645595399,1.16964712,2137.4,2136.5,0.001]
[1772645595400,1.16986429,2137.0,2136.5,0.001]
[1772645595620,1.125,2137.2,2136.5,0.001]
[1772645595825,1.16974203,2137.3,2136.5,0.001]
[1772645596000,0.43209728,2137.2,2136.5,0.001]
[1772645596201,0.58580403,2137.3,2136.5,0.001]
[1772645596456,0.58580403,2137.1,2136.5,0.001]
[1772645596856,1.01817972,2137.0,2136.5,0.001]
[1772645597071,1.16964726,2137.4,2136.5,0.001]
[1772645597246,0.43242595,2137.3,2136.5,0.001]
[1772645597443,0.43242595,2137.2,2136.5,0.001]
[1772645597746,1.16968867,2137.4,2136.5,0.001]
[1772645597971,0.43270947,2137.3,2136.5,0.001]
[1772645598178,0.43270947,2137.2,2136.5,0.001]
[1772645598381,1.0185135,2137.1,2136.5,0.001]
[1772645598568,0.58580403,2137.1,2136.5,0.001]
[1772645598773,0.4328128,2137.0,2136.5,0.001]
[1772645598946,0.58580403,2137.1,2136.5,0.001]
[1772645599149,0.43277754,2137.0,2136.5,0.001]
[1772645599365,0.43277754,2136.9,2136.5,0.001]
[1772645599674,1.75566319,2137.1,2136.5,0.001]
[1772645599979,0.43276592,2137.0,2136.5,0.001]
[1772645600176,0.58580403,2137.1,2136.5,0.001]
[1772645600346,0.43282895,2137.0,2136.5,0.001]
[1772645600548,0.57990725,2137.1,2136.5,0.001]
[1772645600779,0.43284716,2137.0,2136.5,0.001]
[1772645601076,0.43284716,2136.9,2136.5,0.001]
[1772645601285,1.16975767,2137.2,2136.7,0.001]
[1772645601447,0.43286762,2137.1,2136.7,0.001]
[1772645601650,0.43286762,2137.0,2136.7,0.001]
[1772645601854,0.43286762,2136.9,2136.7,0.001]
[1772645602080,2.87464233,2137.3,2136.7,0.001]
[1772645602380,0.43301539,2137.2,2136.7,0.001]
[1772645602547,0.002,2137.4,2136.7,0.58527853]
[1772645602748,0.002,2137.6,2136.7,0.58527853]
[1772645603987,0.002,2137.9,2136.9,0.58427853]
[1772645604207,0.002,2137.9,2137.0,1.66627853]
[1772645605473,0.43310526,2137.7,2136.8,1.16997379]
[1772645605682,0.58365022,2137.9,2136.9,1.082]
[1772645605974,0.4330982,2137.7,2136.9,1.082]
[1772645606278,1.17142651,2137.8,2137.0,1.16986429]
[1772645606485,0.002,2137.8,2137.0,1.16986429]
[1772645606793,0.002,2138.1,2137.1,0.065536]
[1772645607081,0.002,2138.1,2137.3,0.065536]
[1772645607453,0.002,2138.6,2137.3,0.065536]
[1772645607650,0.002,2138.6,2137.3,3.4158703]
[1772645608108,0.002,2138.6,2137.5,1.23512664]
[1772645608689,0.002,2138.6,2137.6,1.082]
[1772645609592,0.002,2138.6,2137.7,0.5327538]
[1772645610287,0.002,2138.6,2137.8,1.16942651]
[1772645612163,0.58365022,2138.6,2137.8,1.16942651]
[1772645612362,1.16904372,2138.5,2137.7,4.67770605]
[1772645613367,0.002,2138.4,2137.7,1.16948121]
[1772645613569,0.58365022,2138.4,2137.4,1.1696088]
[1772645614490,0.58365022,2138.4,2137.5,0.5327538]
[1772645614491,1.17112518,2138.4,2137.5,0.5327538]
[1772645614858,0.002,2138.4,2137.5,0.5327538]
[1772645615276,1.1711052,2138.4,2137.5,0.5327538]
[1772645615671,0.002,2138.4,2137.5,0.5327538]
[1772645616190,1.17110948,2138.4,2137.5,0.5327538]
[1772645616385,0.002,2138.4,2137.6,1.16953592]
[1772645616788,0.002,2138.4,2137.6,1.70228972]
[1772645617991,0.002,2138.4,2137.7,1.082]
[1772645618190,0.002,2138.4,2137.8,0.5327538]
[1772645618394,0.002,2138.6,2137.9,1.70212561]
[1772645618689,0.002,2138.6,2138.0,0.5037538]
[1772645619089,0.002,2138.6,2137.9,1.16937181]
[1772645619797,0.002,2138.6,2138.0,0.5327538]
[1772645620568,0.002,2138.6,2138.1,1.16926242]
[1772645620878,0.002,2138.8,2138.2,0.5327538]
[1772645621076,0.002,2139.1,2138.4,0.5327538]
[1772645621276,1.74987451,2140.0,2138.4,0.5982898]
[1772645621490,0.58165022,2139.8,2138.4,0.5982898]
[1772645621998,0.58165022,2139.8,2138.5,1.083]
[1772645622166,1.16822429,2140.0,2138.6,0.5327538]
[1772645622362,0.58165022,2139.9,2138.6,0.5327538]
[1772645622602,0.58165022,2139.7,2138.4,1.16909839]
[1772645622766,0.58165022,2139.7,2138.4,2.25209839]
[1772645623278,0.58165022,2139.5,2138.4,1.16909839]
[1772645623577,0.58165022,2139.5,2138.2,1.083]
[1772645623778,0.58165022,2139.5,2138.2,2.25220271]
[1772645623982,0.58165022,2139.3,2138.2,2.25220271]
[1772645624687,0.58165022,2139.1,2137.9,0.5327538]
[1772645624875,1.16866118,2139.2,2138.1,0.5327538]
[1772645625076,0.58165022,2140.0,2138.5,0.5327538]
[1772645625277,0.58165022,2140.0,2138.0,1.16931711]
[1772645625278,0.002,2139.5,2138.9,0.5327538]
[1772645625493,0.002,2139.5,2138.8,0.065536]
[1772645625494,1.16806349,2140.3,2139.1,0.5327538]
[1772645625694,1.16792258,2140.6,2139.1,0.5327538]
[1772645625878,0.002,2139.7,2139.1,0.5327538]
[1772645626203,1.16792258,2140.6,2139.1,0.5982898]
[1772645626404,0.002,2140.0,2139.1,0.5982898]
[1772645626782,0.002,2140.0,2139.3,0.5327538]
[1772645627302,0.55179546,2140.8,2139.2,1.16866118]
[1772645627303,0.55179546,2140.8,2139.5,0.5327538]
[1772645628314,0.13885271,2140.8,2140.3,0.5327538]
[1772645628617,1.68691206,2142.2,2140.7,0.56990117]
[1772645628775,0.5198565,2142.0,2140.8,1.16778774]
[1772645629367,0.5198565,2142.0,2140.8,1.73768891]
[1772645629568,1.16705556,2142.2,2140.9,0.56990117]
[1772645629875,1.16690836,2142.5,2141.1,0.56990117]
[1772645630369,0.5198565,2142.7,2141.3,0.56990117]
[1772645630573,0.5198565,2142.7,2141.4,1.072]
[1772645630805,0.5198565,2142.5,2140.5,1.73782991]
[1772645630989,0.5198565,2142.5,2140.6,0.63543717]
[1772645631190,0.5198565,2142.3,2140.6,0.56990117]
[1772645632910,0.5198565,2142.1,2140.3,4.67209388]
[1772645633402,0.5198565,2141.7,2140.3,1.16806055]
[1772645634699,0.5198565,2141.5,2140.3,1.16806055]
[1772645635887,0.5198565,2141.5,2140.2,1.16809801]
[1772645636504,0.5198565,2141.5,2140.1,5.24250977]
[1772645636723,0.5198565,2141.5,2140.2,1.16809801]
[1772645637092,1.16746053,2141.4,2140.2,1.16809801]
[1772645637698,1.16746053,2141.4,2140.2,1.73799918]
[1772645637900,1.16746053,2141.4,2140.3,0.56990117]
[1772645638300,1.16944757,2141.5,2140.3,0.56990117]
[1772645638704,1.68930407,2141.5,2140.3,0.56990117]
[1772645639321,0.5198565,2141.4,2140.4,1.16800598]
[1772645640110,0.5198565,2141.4,2140.0,1.1761972]
[1772645640316,0.5198565,2141.4,2140.0,0.00800676]
[1772645640621,0.5198565,2141.2,2140.0,1.17622591]
[1772645641224,1.16762411,2141.1,2140.0,1.17622591]
[1772645641584,1.16762411,2141.1,2140.0,0.00800676]
[1772645641920,0.5198565,2141.0,2139.5,1.16949663]
[1772645642228,0.5198565,2140.9,2139.6,0.56990117]
[1772645643496,0.5198565,2140.9,2139.7,1.16838809]
[1772645643497,1.68764424,2140.8,2139.7,1.16838809]
[1772645643821,1.68764424,2140.8,2139.7,1.73828926]
[1772645644008,1.16776516,2140.9,2139.8,0.56990117]
[1772645644185,1.16762756,2141.1,2139.8,0.56990117]
[1772645644386,1.16760833,2141.2,2139.8,0.56990117]
[1772645645488,1.16746053,2141.4,2140.0,0.56990117]
[1772645646111,0.5218565,2141.5,2140.2,0.56990117]
[1772645646311,1.169413,2141.5,2140.2,0.56990117]
[1772645646816,0.5198565,2141.4,2140.2,0.56990117]
[1772645647511,1.16751506,2141.3,2140.3,1.73796172]
[1772645647890,1.68737156,2141.3,2140.3,1.16806055]
[1772645648091,1.16749284,2141.4,2140.4,0.56990117]
[1772645648293,1.16749284,2141.4,2140.4,0.5651008]
[1772645648510,0.5198565,2141.3,2140.3,1.16806055]
[1772645649519,0.002,2141.5,2140.4,0.56990117]
[1772645650424,0.5198565,2141.3,2140.3,1.16806055]
[1772645650832,0.5198565,2141.3,2140.0,4.67285101]
[1772645650833,0.5198565,2141.3,2140.0,4.67274004]
[1772645651140,0.5198565,2141.1,2139.6,1.16844269]
[1772645651344,0.5198565,2140.9,2139.5,1.16949459]
[1772645651497,0.5198565,2140.5,2139.5,0.001]
[1772645651822,0.5198565,2140.3,2139.5,0.001]
[1772645652802,1.68775335,2140.6,2139.5,0.001]
[1772645653119,0.94968286,2140.5,2139.5,0.001]
[1772645653312,0.42982636,2140.4,2139.5,0.001]
[1772645653720,1.16806055,2140.3,2139.5,0.001]
[1772645654111,0.5198565,2140.1,2139.5,0.001]
[1772645654295,0.5198565,2139.9,2139.5,0.001]
[1772645654799,0.5198565,2140.0,2139.5,0.001]
[1772645655004,0.43029534,2139.9,2139.5,0.001]
[1772645655201,0.5198565,2140.0,2139.5,0.001]
[1772645655398,0.43037932,2139.9,2139.5,0.001]
[1772645655590,0.5198565,2140.0,2139.5,0.001]
[1772645655791,1.16833348,2139.8,2139.5,0.001]
[1772645656508,1.68818998,2139.8,2139.5,0.001]
[1772645656712,0.5198565,2139.7,2139.2,0.001]
[1772645657836,1.16844269,2139.6,2139.2,0.001]
[1772645658206,1.68829919,2139.6,2139.2,0.001]
[1772645659522,0.51203434,2139.5,2139.2,0.001]
[1772645659721,0.51203434,2139.5,2139.0,0.001]
[1772645659932,2.1099301,2139.4,2138.4,0.56990117]
[1772645660130,0.51203434,2139.2,2138.1,1.67774783]
[1772645660637,0.51203434,2139.2,2138.1,0.50852854]
[1772645660804,0.51203434,2139.2,2138.1,1.67778991]
[1772645661846,0.51203434,2139.0,2138.1,1.16926137]
[1772645662340,0.51203434,2139.0,2138.0,1.1692921]
[1772645663630,2.28071581,2139.1,2138.1,0.50852854]
[1772645663631,1.16871581,2139.1,2138.1,0.50852854]
[1772645663806,1.16868965,2139.2,2138.1,0.50852854]
[1772645664201,1.16868965,2139.2,2138.2,1.67773628]
[1772645664429,1.16864102,2139.3,2138.3,0.50852854]
[1772645665304,1.16864102,2139.3,2138.4,0.001]
[1772645665905,1.16856095,2139.4,2138.4,0.55880196]
[1772645666103,1.17052708,2139.5,2138.5,1.16904372]
[1772645666307,1.17052708,2139.5,2138.5,1.72684568]
[1772645666834,0.002,2139.5,2138.6,0.55780196]
[1772645667205,0.002,2139.5,2138.7,0.55780196]
[1772645667611,0.002,2139.7,2138.7,0.55780196]
[1772645668335,0.002,2139.7,2138.9,0.55780196]
[1772645668540,0.002,2139.7,2138.8,1.16887974]
[1772645668541,0.52857615,2139.7,2138.8,1.16887974]
[1772645668709,0.52857615,2139.7,2138.7,1.16889916]
[1772645670318,1.69700901,2139.7,2138.8,0.55780196]
[1772645670715,1.69700901,2139.7,2138.5,1.16901105]
[1772645670716,0.52657615,2139.6,2138.5,1.16901105]
[1772645671046,0.52657615,2139.6,2138.5,1.72681301]
[1772645672942,0.52657615,2139.4,2138.4,1.17006469]
[1772645673115,0.52657615,2139.4,2138.4,1.17009646]
[1772645673312,0.52657615,2139.2,2138.4,1.17009311]
[1772645673533,0.52657615,2139.2,2138.4,0.001]
[1772645673719,0.52657615,2139.0,2138.1,0.001]
[1772645673931,0.52657615,2139.0,2138.1,1.17025926]
[1772645675127,0.52657615,2138.8,2138.1,0.001]
[1772645676112,0.52657615,2138.8,2138.1,1.17026004]
[1772645676422,0.52657615,2138.8,2138.1,0.001]
[1772645677149,1.69551054,2138.7,2138.1,0.001]
[1772645677451,0.52657615,2138.6,2138.1,0.001]
[1772645679114,0.52657615,2138.6,2138.3,0.001]
[1772645679312,0.52657615,2138.4,2137.9,0.001]
[1772645679848,0.52657615,2138.2,2137.6,0.001]
[1772645680057,0.42960889,2138.3,2137.4,0.001]
[1772645680058,0.52657615,2138.0,2137.4,0.001]
[1772645680236,1.54260889,2138.1,2136.7,0.001]
[1772645680237,0.52657615,2137.8,2136.7,0.001]
[1772645680416,0.52657615,2137.6,2136.7,1.17102034]
[1772645680623,2.6420281,2137.9,2136.7,1.17102034]
[1772645680624,0.95639547,2137.5,2136.7,1.17102034]
[1772645680851,0.52657615,2137.5,2136.7,1.17102034]
[1772645681246,1.16964536,2137.4,2136.7,0.001]
[1772645681434,1.16951192,2137.7,2136.7,0.55880196]
[1772645682120,0.52657615,2137.8,2136.7,0.55880196]
[1772645682329,4.67673121,2138.3,2136.9,0.55780196]
[1772645682543,1.113,2138.5,2136.9,0.55780196]
[1772645682722,1.113,2138.5,2136.8,1.067]
[1772645682723,1.69560427,2138.6,2137.3,0.55780196]
[1772645683354,0.95627205,2138.5,2137.4,1.72744732]
[1772645683567,1.69560427,2138.6,2137.5,0.55780196]
[1772645684355,0.42979786,2138.5,2137.5,0.55780196]
[1772645684556,1.69560427,2138.6,2137.5,0.55780196]
[1772645685333,1.69560427,2138.6,2137.6,1.16953592]
[1772645685539,0.42995674,2138.5,2137.6,1.16953592]
[1772645685737,1.69560427,2138.6,2137.6,1.16953592]
[1772645685933,0.42996253,2138.5,2137.6,1.16953592]
[1772645686159,1.69560427,2138.6,2137.6,1.16953592]
[1772645686328,0.43003792,2138.5,2137.6,1.16953592]
[1772645686530,1.16902812,2138.6,2137.6,1.16953592]
[1772645686726,0.52657615,2138.4,2137.6,1.16953592]
[1772645686926,2.71925337,2139.1,2137.4,0.55780196]
[1772645687131,0.43006131,2139.0,2137.6,0.55780196]
[1772645687497,0.43006131,2139.0,2137.8,0.55780196]
[1772645687498,1.59892966,2138.9,2137.8,0.55780196]
[1772645687636,0.52657615,2138.7,2137.6,1.16949155]
[1772645687959,0.52657615,2138.5,2137.6,1.16949155]
[1772645689062,0.52657615,2138.5,2137.6,1.68346748]
[1772645689250,1.113,2138.6,2137.6,1.68346748]
[1772645689455,1.16909839,2138.4,2137.6,1.68346748]
[1772645690162,1.16909839,2138.4,2137.3,1.68363248]
[1772645690163,0.54800531,2138.3,2137.3,1.68363248]
[1772645690330,0.54800531,2138.1,2137.2,1.16975481]
[1772645691057,2.8301037,2138.4,2137.3,0.51397593]
[1772645691256,0.54800531,2138.2,2137.2,1.16975481]
[1772645691457,1.16926242,2138.1,2137.2,1.16975481]
[1772645692436,1.71704903,2138.5,2137.4,0.51497593]
[1772645692635,0.54800531,2138.3,2137.4,0.51497593]
[1772645692843,0.42987983,2138.2,2137.4,0.001]
[1772645693027,0.54800531,2138.3,2137.4,0.001]
[1772645693233,0.42984694,2138.2,2137.4,0.001]
[1772645693439,5.78912228,2138.6,2137.4,0.51497593]
[1772645693640,1.59884372,2138.5,2137.4,0.51497593]
[1772645693864,0.4298,2138.4,2137.4,0.51497593]
[1772645694696,0.97780531,2138.4,2137.4,0.51497593]
[1772645694835,0.54800531,2139.3,2137.5,0.57951193]
[1772645695035,0.002,2139.4,2138.2,0.51397593]
[1772645695264,0.002,2139.4,2138.7,0.51397593]
[1772645695570,0.002,2139.4,2138.9,1.16882509]
[1772645696644,0.002,2139.4,2138.8,1.16884718]
[1772645698083,0.002,2139.4,2138.7,1.16889249]
[1772645698288,0.002,2139.4,2138.5,4.6760964]
[1772645698289,0.55000531,2139.4,2138.5,4.6760964]
[1772645699257,0.55000531,2139.4,2138.4,4.67625976]
[1772645699637,0.002,2139.4,2138.4,5.19023569]
[1772645699846,0.002,2139.4,2138.5,0.51397593]
[1772645701071,1.17055986,2139.4,2138.5,0.51397593]
[1772645701276,1.1705576,2139.4,2138.5,0.51397593]
[1772645701573,0.002,2139.4,2138.7,0.51397593]
[1772645701747,0.002,2139.6,2138.7,0.51397593]
[1772645702381,0.55000531,2139.6,2138.4,4.67632568]
[1772645702668,0.55000531,2139.6,2138.4,1.16909839]
[1772645703375,0.55000531,2139.6,2138.2,4.67673406]
[1772645703543,0.54800531,2139.2,2137.8,4.67748725]
[1772645704368,0.54800531,2139.2,2137.8,5.19146318]
[1772645704672,4.67442621,2139.4,2137.8,5.19146318]
[1772645704673,0.002,2139.4,2138.1,0.51397593]
[1772645704857,0.002,2139.4,2138.0,0.065536]
[1772645704858,0.002,2139.4,2138.5,0.51397593]
[1772645705040,0.002,2139.4,2138.7,0.51397593]
[1772645705247,0.002,2139.4,2138.9,0.51397593]
[1772645705469,0.002,2140.0,2139.0,0.065536]
[1772645705671,0.002,2140.0,2139.3,0.57951193]
[1772645705859,0.002,2140.0,2139.5,0.065536]
[1772645706259,0.002,2140.0,2139.1,1.16871581]
[1772645708270,0.002,2140.0,2139.2,0.57951193]
[1772645708580,1.16799034,2140.5,2139.2,0.57951193]
[1772645708745,0.54800531,2140.5,2139.2,0.065536]
[1772645708944,0.54800531,2140.5,2139.3,1.071]
[1772645709178,0.54800531,2140.5,2139.3,1.58497593]
[1772645709373,1.1679333,2140.6,2139.4,0.51397593]
[1772645709778,0.002,2141.1,2139.6,0.51397593]
[1772645710076,0.002,2141.1,2139.5,1.23403331]
[1772645710077,0.002,2141.1,2140.4,0.51397593]
[1772645710277,0.002,2141.3,2140.4,0.51397593]
[1772645710490,1.16952919,2141.3,2140.5,1.09728785]
[1772645710979,1.16951768,2141.3,2140.5,1.09728785]
[1772645711346,1.16951768,2141.3,2140.5,0.02628785]
[1772645711658,0.002,2141.3,2140.6,1.16789685]
[1772645714175,0.002,2141.3,2140.6,1.23629228]
[1772645714378,0.55000531,2141.3,2140.6,0.06839543]
[1772645715451,0.002,2141.3,2140.6,0.06839543]
[1772645715656,0.54800531,2141.7,2140.6,0.13393143]
[1772645716452,1.16735151,2141.6,2140.7,1.16784229]
[1772645717277,1.71535682,2141.6,2140.7,1.16784229]
[1772645717490,0.002,2141.1,2140.7,1.16784229]
[1772645718358,0.002,2141.1,2140.6,1.23628858]
[1772645718760,0.002,2141.1,2140.6,0.06839543]
[1772645719269,0.002,2141.1,2140.6,1.23629027]
[1772645719582,0.52424355,2141.1,2140.6,0.06839543]
[1772645719972,0.52424355,2141.1,2139.9,1.064]
[1772645720176,0.52424355,2141.1,2139.8,1.16828971]
[1772645720177,0.52424355,2141.1,2139.8,1.16833348]
[1772645720556,0.52224355,2140.9,2139.7,1.16838809]
[1772645720759,0.52224355,2140.9,2139.4,0.51679564]
[1772645720959,0.52224355,2140.9,2139.3,1.16860655]
[1772645722572,0.52224355,2140.7,2139.1,4.67485965]
[1772645723087,0.52224355,2140.7,2139.1,5.19165529]
[1772645724163,0.42952543,2140.6,2139.1,5.19165529]
[1772645724384,0.52224355,2140.5,2139.1,5.19165529]
[1772645725079,0.52224355,2140.3,2139.1,5.19165529]
[1772645725675,0.52234224,2140.9,2139.2,0.51453076]
[1772645725963,1.16767865,2141.0,2139.3,0.58006676]
[1772645725964,0.52234224,2140.7,2139.3,0.58006676]
[1772645726482,1.16964781,2141.1,2139.3,0.58006676]
[1772645726685,0.002,2141.1,2139.8,0.065536]
[1772645726880,0.002,2141.3,2140.4,0.51453076]
[1772645727080,0.002,2141.3,2140.5,1.16795141]
[1772645727493,0.52434224,2141.3,2140.4,1.16796439]
[1772645728195,0.52434224,2141.3,2140.1,1.16816971]
[1772645729006,1.16756958,2141.2,2140.0,4.67269685]
[1772645729305,0.52434224,2141.3,2140.1,0.51453076]
[1772645729503,0.002,2141.3,2140.1,0.51453076]
[1772645729805,0.002,2141.3,2140.3,0.51553076]
[1772645729963,0.002,2141.3,2140.5,0.51453076]
[1772645730972,0.002,2141.3,2140.6,1.16789685]
[1772645731301,0.002,2141.3,2140.6,1.68242761]
[1772645732585,0.002,2141.3,2140.4,2.23495313]
[1772645732820,0.52434224,2141.3,2140.4,2.23495313]
[1772645733194,0.52234224,2141.1,2140.3,1.16906055]
[1772645733692,0.52234224,2141.1,2140.3,0.001]
[1772645734289,0.43129217,2141.0,2140.3,0.001]
[1772645734599,0.52234224,2141.1,2140.3,0.001]
[1772645734805,0.43129581,2141.0,2140.3,0.001]
[1772645735015,0.52234224,2141.1,2140.3,0.001]
[1772645735172,1.16773319,2140.9,2140.3,0.001]
[1772645735606,0.002,2141.3,2140.3,0.58106676]
[1772645735812,1.6918691,2141.3,2140.3,0.001]
[1772645736980,0.002,2141.6,2140.3,0.001]
[1772645737175,0.25909813,2142.1,2140.9,0.065536]
[1772645737380,0.52234224,2142.8,2141.3,0.58006676]
[1772645737812,0.52234224,2143.2,2141.3,0.58006676]
[1772645738012,0.52234224,2143.0,2141.5,0.58006676]
[1772645738382,1.16646677,2143.3,2141.5,0.58006676]
[1772645738694,0.43118234,2143.2,2141.5,0.58006676]
[1772645738894,0.43118234,2143.1,2141.5,0.58006676]
[1772645739421,0.1687395,2143.5,2142.4,0.51453076]
[1772645739592,0.1687395,2143.5,2142.6,0.065536]
[1772645739783,1.3350642,2143.5,2142.6,0.065536]
[1772645740187,1.3350642,2143.5,2142.5,0.51453076]
[1772645740528,0.1687395,2143.5,2142.5,0.51453076]
[1772645741310,0.1687395,2143.5,2142.6,1.16680668]
[1772645742213,0.1687395,2143.5,2142.7,0.51453076]
[1772645742214,1e-08,2143.5,2142.7,0.51453076]
[1772645743283,1e-08,2143.5,2142.8,1.16669777]
[1772645743700,1.16597588,2144.2,2142.9,0.51453076]
[1772645743921,0.52234224,2144.1,2142.8,1.16669777]
[1772645745024,0.002,2143.5,2142.8,1.16669777]
[1772645745495,0.002,2143.5,2142.6,4.66679111]
[1772645745696,0.002,2143.8,2142.7,0.58006676]
[1772645745996,1.1659923,2144.1,2142.7,0.58006676]
[1772645746208,0.52234224,2144.0,2142.7,0.58006676]
[1772645746637,0.52234224,2144.0,2142.7,0.065536]
[1772645747308,0.52234224,2144.0,2142.6,4.66679111]
[1772645747510,0.52234224,2143.8,2142.6,4.66679111]
[1772645747913,0.52234224,2143.8,2142.2,1.16698283]
[1772645749299,0.54572904,2143.7,2142.2,1.16698283]
[1772645749613,0.54572904,2143.5,2142.0,1.16713352]
[1772645750019,0.54572904,2143.5,2141.9,1.16714486]
[1772645751601,0.54572904,2143.5,2141.8,1.23190386]
[1772645751602,0.54572904,2143.3,2141.8,1.23190386]
[1772645751802,0.54572904,2142.9,2141.2,1.16756958]
[1772645752009,0.14948499,2143.2,2141.2,1.16756958]
[1772645752010,0.54572904,2142.7,2141.2,1.16756958]
[1772645753025,0.54572904,2142.5,2141.1,1.22275884]
[1772645753225,0.54572904,2142.3,2141.1,1.22275858]
[1772645753426,0.54572904,2142.3,2141.1,0.05514528]
[1772645753625,0.54572904,2142.1,2141.1,0.05514528]
[1772645753934,0.54572904,2142.1,2141.1,1.22276465]
[1772645754136,0.54572904,2142.1,2141.1,0.05514528]
[1772645754644,0.54572904,2142.1,2140.8,1.16874615]
[1772645755227,0.54572904,2142.1,2140.8,0.001]
[1772645755529,1.16713352,2142.0,2140.8,0.001]
[1772645755735,1.63372904,2141.9,2140.8,0.001]
[1772645756416,0.54572904,2141.8,2140.8,0.001]
[1772645756620,0.54572904,2141.7,2140.8,0.001]
[1772645757238,1.16713352,2142.0,2140.8,0.001]
[1772645757239,0.54772904,2141.9,2140.8,0.001]
[1772645757736,1.1672425,2141.8,2140.8,0.001]
[1772645758536,1.71495577,2141.9,2140.8,0.001]
[1772645758904,0.002,2141.9,2140.8,0.51570591]
[1772645759641,0.002,2141.9,2140.9,1.6824391]
[1772645759830,0.002,2141.9,2141.0,0.51470591]
[1772645761026,0.002,2141.9,2140.9,1.16773319]
[1772645761223,0.54772904,2141.9,2140.9,1.16773319]
[1772645762251,1.71297154,2141.8,2140.8,0.001]
[1772645763725,0.54572904,2141.7,2140.8,0.001]
[1772645764338,0.54572904,2141.5,2140.8,0.001]
[1772645764555,0.54572904,2141.5,2140.5,0.001]
[1772645765613,1.16733895,2141.7,2140.6,0.58024191]
[1772645766048,0.002,2141.9,2140.6,0.58024191]
[1772645766233,0.002,2141.9,2140.8,0.58024191]
[1772645766816,0.54572904,2141.8,2140.7,1.16784229]
[1772645767225,0.002,2141.9,2140.8,0.51470591]
[1772645767951,0.002,2141.9,2140.7,1.16784229]
[1772645767952,0.54772904,2141.9,2140.7,1.16784229]
[1772645768124,0.54772904,2141.9,2140.6,1.16787797]
[1772645768125,0.54572904,2141.8,2140.6,1.16787797]
[1772645768443,0.54572904,2141.6,2140.5,2.2359074]
[1772645769725,0.54572904,2141.6,2140.5,0.001]
[1772645769953,0.54572904,2141.4,2140.5,0.001]
[1772645770155,0.54572904,2141.4,2140.5,1.16894361]
[1772645770317,1.16751506,2141.3,2140.5,0.001]
[1772645772443,1.7132441,2141.3,2140.5,0.001]
[1772645772641,1.16751506,2141.3,2140.5,0.001]
[1772645772818,1.16933372,2141.7,2140.5,0.51570591]
[1772645773022,0.002,2141.7,2140.6,0.51470591]
[1772645773918,1.16931696,2141.7,2140.6,0.51470591]
[1772645774330,1.16931696,2141.7,2140.7,1.16784229]
[1772645774331,0.002,2141.7,2140.7,1.16784229]
[1772645775319,0.002,2141.7,2140.8,0.51470591]
[1772645775723,0.54572904,2141.5,2140.5,0.001]
[1772645776023,0.43057574,2141.4,2140.5,0.001]
[1772645776222,0.97630478,2141.4,2140.5,0.001]
[1772645776422,1.16756958,2141.2,2140.5,0.001]
[1772645778660,1.16740602,2141.5,2140.5,0.001]
[1772645778855,0.43192191,2141.4,2140.5,0.001]
[1772645779156,0.43192191,2141.3,2140.5,0.001]
[1772645779337,1.16740602,2141.5,2140.6,0.51496253]
[1772645779531,0.43231826,2141.4,2140.6,0.51496253]
[1772645779757,1.16740602,2141.5,2140.6,0.51496253]
[1772645779962,0.43231265,2141.4,2140.6,0.51496253]
[1772645780140,1.16740602,2141.5,2140.6,0.51496253]
[1772645780340,0.43264749,2141.4,2140.6,0.51496253]
[1772645780538,1.16740602,2141.5,2140.6,0.51496253]
[1772645780853,1.16740602,2141.5,2140.7,1.16784229]
[1772645781168,0.43276084,2141.4,2140.7,1.16784229]
[1772645781458,1.16740602,2141.5,2140.7,1.16784229]
[1772645781660,0.43277653,2141.4,2140.7,1.16784229]
[1772645781825,1.16934026,2141.7,2140.7,1.68280482]
[1772645782027,0.43280035,2141.6,2140.8,0.51496253]
[1772645782247,0.002,2141.7,2140.8,0.51496253]
[1772645782651,0.002,2141.5,2140.8,0.51496253]
[1772645782853,0.002,2141.5,2141.0,0.51496253]
[1772645783244,0.002,2141.5,2141.1,0.51496253]
[1772645783926,0.002,2141.5,2140.8,1.16774809]
[1772645784759,0.002,2141.5,2140.9,0.51496253]
[1772645785561,0.002,2141.7,2140.9,0.51496253]
[1772645785752,0.002,2141.7,2141.0,1.16767865]
[1772645785957,0.002,2141.7,2141.1,0.50774592]
[1772645786158,0.002,2141.7,2141.3,0.50774592]
[1772645786671,0.002,2141.7,2141.5,0.50774592]
[1772645787756,0.002,2141.7,2141.6,1.16735151]
[1772645790452,0.002,2141.9,2141.7,0.50774592]
[1772645791174,0.002,2141.9,2141.6,1.16735151]
[1772645791367,0.002,2141.9,2141.4,4.66976431]
[1772645793146,0.002,2141.9,2141.5,0.50774592]
[1772645794071,0.002,2141.9,2141.6,1.16735151]
[1772645794281,0.002,2141.9,2141.0,4.6705231]
[1772645794654,0.002,2141.9,2141.0,5.17826902]
[1772645795856,0.002,2141.9,2141.1,0.50774592]
[1772645796177,0.002,2141.9,2141.3,0.50774592]
[1772645796377,0.002,2141.9,2141.2,1.16756958]
[1772645796378,0.002,2141.9,2141.4,1.57974592]
[1772645796887,0.002,2141.9,2141.2,1.16756958]
[1772645796888,0.54198654,2141.9,2141.2,0.001]
[1772645797071,0.002,2141.7,2141.2,0.001]
[1772645799549,0.002,2141.7,2141.2,0.50874592]
[1772645799753,0.002,2141.7,2141.2,0.001]
[1772645802479,0.002,2141.7,2141.2,1.16856958]
[1772645802992,0.002,2141.9,2141.3,1.58274592]
[1772645803212,0.002,2141.9,2141.4,0.50774592]
[1772645804705,0.002,2141.9,2141.5,2.24240602]
[1772645804874,0.002,2141.9,2141.5,2.75015194]
[1772645805476,0.002,2142.1,2141.5,2.75015194]
[1772645806368,0.002,2142.1,2141.6,0.50774592]
[1772645806564,0.31549445,2143.1,2141.9,0.50774592]
[1772645806814,0.31549445,2143.1,2141.8,1.1672425]
[1772645806815,0.002,2143.0,2142.1,0.57328192]
[1772645807017,1.16637282,2143.4,2142.1,0.57328192]
[1772645807018,0.002,2143.3,2142.1,0.57328192]
[1772645807319,0.002,2143.7,2142.1,0.57328192]
[1772645807487,0.002,2143.7,2142.3,0.57328192]
[1772645807808,0.53998654,2143.5,2142.3,0.065536]